[Event "*** Titled Tuesday 3|2 Blitz"]
[Site "Chess.com"]
[Date "2017.03.07"]
[Round "7"]
[White "TheNextLevelFan"]
[Black "SCIM"]
[Result "0-1"]
[WhiteElo "2382"]
[BlackElo "2331"]
[TimeControl "180+2"]
[EndTime "14:36:57 PST"]
[Termination "SCIM won by resignation"]

1. d4 {[%clk 0:02:55.5]} 1... Nf6 {[%clk 0:02:58.7]} 2. c4 {[%clk 0:02:52.4]}
2... e6 {[%clk 0:02:59.1]} 3. Nf3 {[%clk 0:02:53.4]} 3... Bb4+ {[%clk
0:02:57.4]} 4. Bd2 {[%clk 0:02:54.1]} 4... Qe7 {[%clk 0:02:57.7]} 5. Nc3 {[%clk
0:02:54.8]} 5... O-O {[%clk 0:02:56]} 6. Qc2 {[%clk 0:02:56]} 6... d5 {[%clk
0:02:47.9]} 7. e3 {[%clk 0:02:55.3]} 7... c5 {[%clk 0:02:44.8]} 8. dxc5 {[%clk
0:02:46.7]} 8... Bxc5 {[%clk 0:02:31.5]} 9. a3 {[%clk 0:02:43.2]} 9... Nc6
{[%clk 0:02:29.7]} 10. b4 {[%clk 0:02:41.3]} 10... Bd6 {[%clk 0:02:23.8]} 11. c5
{[%clk 0:02:40.4]} 11... Bb8 {[%clk 0:02:21.7]} 12. Be2 {[%clk 0:02:17.1]} 12...
e5 {[%clk 0:02:17.2]} 13. O-O {[%clk 0:02:18]} 13... e4 {[%clk 0:02:01.5]} 14.
Nd4 {[%clk 0:02:18.1]} 14... Qe5 {[%clk 0:01:58.1]} 15. f4 {[%clk 0:02:08.7]}
15... Nxd4 {[%clk 0:01:49.6]} 16. exd4 {[%clk 0:02:10.6]} 16... Qxd4+ {[%clk
0:01:42.2]} 17. Kh1 {[%clk 0:02:12]} 17... e3 {[%clk 0:01:37.8]} 18. Be1 {[%clk
0:01:51.5]} 18... Ng4 {[%clk 0:00:59.9]} 19. Rd1 {[%clk 0:01:43.4]} 19... Qf6
{[%clk 0:00:59.5]} 20. Nxd5 {[%clk 0:01:39.7]} 20... Qh6 {[%clk 0:00:57.6]} 21.
Bg3 {[%clk 0:01:40.7]} 21... Nf2+ {[%clk 0:00:49.6]} 22. Bxf2 {[%clk 0:01:38]}
22... exf2 {[%clk 0:00:50.2]} 23. Rxf2 {[%clk 0:01:37.9]} 23... Be6 {[%clk
0:00:48.7]} 24. Bf3 {[%clk 0:01:08.5]} 24... a5 {[%clk 0:00:40.8]} 25. g3 {[%clk
0:01:03.9]} 25... axb4 {[%clk 0:00:39.3]} 26. axb4 {[%clk 0:01:05.8]} 26... Ra3
{[%clk 0:00:37]} 27. Bg2 {[%clk 0:01:00.2]} 27... Rxg3 {[%clk 0:00:33.6]} 28.
Ne7+ {[%clk 0:01:00.8]} 28... Kh8 {[%clk 0:00:30.2]} 29. f5 {[%clk 0:00:56.9]}
29... Rc3 {[%clk 0:00:21.2]} 30. Be4 {[%clk 0:00:42.8]} 30... Rxc2 {[%clk
0:00:19.1]} 31. Rxc2 {[%clk 0:00:44.7]} 31... Bb3 {[%clk 0:00:18.4]} 32. Rdd2
{[%clk 0:00:44.1]} 32... Bxc2 {[%clk 0:00:18.5]} 33. Rxc2 {[%clk 0:00:46]} 33...
Qe3 {[%clk 0:00:18.6]} 0-1

[Event "*** Titled Tuesday 3|2 Blitz"]
[Site "Chess.com"]
[Date "2017.03.07"]
[Round "7"]
[White "Astaneh"]
[Black "workhard91"]
[Result "1-0"]
[WhiteElo "2531"]
[BlackElo "2229"]
[TimeControl "180+2"]
[EndTime "14:37:06 PST"]
[Termination "Astaneh won by resignation"]

1. e4 {[%clk 0:03:02]} 1... c5 {[%clk 0:02:59.9]} 2. Nf3 {[%clk 0:02:56.4]} 2...
Nc6 {[%clk 0:03:00.8]} 3. Bb5 {[%clk 0:02:56.7]} 3... d6 {[%clk 0:03:02]} 4. O-O
{[%clk 0:02:52.1]} 4... Bd7 {[%clk 0:02:58.2]} 5. Re1 {[%clk 0:02:48.9]} 5...
Nf6 {[%clk 0:02:59.1]} 6. Nc3 {[%clk 0:02:46.3]} 6... g6 {[%clk 0:02:28.4]} 7.
Bxc6 {[%clk 0:02:37.8]} 7... Bxc6 {[%clk 0:02:29.4]} 8. e5 {[%clk 0:02:39.7]}
8... dxe5 {[%clk 0:02:04.5]} 9. Nxe5 {[%clk 0:02:39.5]} 9... Rc8 {[%clk
0:02:05.8]} 10. d3 {[%clk 0:02:20.5]} 10... Bg7 {[%clk 0:02:04.2]} 11. Qe2
{[%clk 0:02:20.6]} 11... Nd7 {[%clk 0:00:38.7]} 12. Nc4 {[%clk 0:01:51.8]} 12...
Nb6 {[%clk 0:00:35.2]} 13. Bg5 {[%clk 0:01:44.8]} 13... f6 {[%clk 0:00:21.9]}
14. Be3 {[%clk 0:01:31]} 14... Nxc4 {[%clk 0:00:16.8]} 15. dxc4 {[%clk
0:01:31.9]} 15... b6 {[%clk 0:00:17.6]} 16. h4 {[%clk 0:01:03.5]} 16... O-O
{[%clk 0:00:14.2]} 17. h5 {[%clk 0:01:04.9]} 17... e5 {[%clk 0:00:14.1]} 18.
Rad1 {[%clk 0:01:01.2]} 18... Qc7 {[%clk 0:00:15.1]} 19. hxg6 {[%clk 0:00:56.7]}
19... hxg6 {[%clk 0:00:16.3]} 20. Qg4 {[%clk 0:00:55.8]} 20... Qf7 {[%clk
0:00:17.1]} 21. Rd6 {[%clk 0:00:55.8]} 21... Rfd8 {[%clk 0:00:15.5]} 22. Red1
{[%clk 0:00:55.2]} 22... Re8 {[%clk 0:00:05.5]} 23. Nd5 {[%clk 0:00:50.4]} 23...
Bxd5 {[%clk 0:00:06.4]} 24. R1xd5 {[%clk 0:00:50]} 24... Rc7 {[%clk 0:00:07.2]}
25. Rd7 {[%clk 0:00:43.2]} 25... Rxd7 {[%clk 0:00:07.6]} 26. Rxd7 {[%clk
0:00:45.1]} 26... Qe6 {[%clk 0:00:06.3]} 27. Qxe6+ {[%clk 0:00:43]} 27... Rxe6
{[%clk 0:00:08.2]} 28. Rxa7 {[%clk 0:00:44.6]} 28... e4 {[%clk 0:00:09.8]} 29.
Ra6 {[%clk 0:00:42.8]} 29... f5 {[%clk 0:00:11]} 30. Bxc5 {[%clk 0:00:40.5]}
30... Rc6 {[%clk 0:00:08.3]} 31. b4 {[%clk 0:00:39.4]} 31... Bf8 {[%clk
0:00:04.8]} 32. Bxf8 {[%clk 0:00:37.9]} 32... Kxf8 {[%clk 0:00:05.4]} 33. c5
{[%clk 0:00:39.5]} 1-0

[Event "*** Titled Tuesday 3|2 Blitz"]
[Site "Chess.com"]
[Date "2017.03.07"]
[Round "7"]
[White "Hikaru"]
[Black "igorkovalenko"]
[Result "1-0"]
[WhiteElo "2908"]
[BlackElo "2704"]
[TimeControl "180+2"]
[EndTime "14:37:19 PST"]
[Termination "Hikaru won by resignation"]

1. b3 {[%clk 0:03:02]} 1... e5 {[%clk 0:03:00.2]} 2. Bb2 {[%clk 0:03:00.8]} 2...
Nc6 {[%clk 0:03:01.4]} 3. e3 {[%clk 0:03:02.3]} 3... a6 {[%clk 0:03:02.7]} 4. c4
{[%clk 0:03:01]} 4... Nf6 {[%clk 0:03:03.8]} 5. Nc3 {[%clk 0:02:59.3]} 5... Bb4
{[%clk 0:03:01.6]} 6. Nd5 {[%clk 0:02:59.6]} 6... Be7 {[%clk 0:03:00.7]} 7. Ne2
{[%clk 0:02:49.9]} 7... O-O {[%clk 0:03:00.8]} 8. Nec3 {[%clk 0:02:49.1]} 8...
d6 {[%clk 0:03:01]} 9. Nxe7+ {[%clk 0:02:49.5]} 9... Qxe7 {[%clk 0:02:59.4]} 10.
Be2 {[%clk 0:02:50.4]} 10... Rd8 {[%clk 0:02:59.6]} 11. O-O {[%clk 0:02:48.2]}
11... d5 {[%clk 0:02:56.7]} 12. cxd5 {[%clk 0:02:48.3]} 12... Nxd5 {[%clk
0:02:58.6]} 13. Nxd5 {[%clk 0:02:45.1]} 13... Rxd5 {[%clk 0:03:00.5]} 14. Qc2
{[%clk 0:02:46.3]} 14... Nb4 {[%clk 0:02:39.8]} 15. Qc3 {[%clk 0:02:46.7]} 15...
Nc6 {[%clk 0:02:15.6]} 16. f4 {[%clk 0:02:27.6]} 16... Be6 {[%clk 0:01:49]} 17.
Bc4 {[%clk 0:02:07.7]} 17... Ra5 {[%clk 0:01:38.7]} 18. a4 {[%clk 0:01:58.3]}
18... Bxc4 {[%clk 0:01:38.1]} 19. bxc4 {[%clk 0:01:59.2]} 19... f6 {[%clk
0:01:29.7]} 20. d4 {[%clk 0:01:51.1]} 20... exd4 {[%clk 0:01:29.8]} 21. exd4
{[%clk 0:01:53]} 21... Rh5 {[%clk 0:01:20.9]} 22. d5 {[%clk 0:01:46.2]} 22...
Nb4 {[%clk 0:01:16.3]} 23. Rae1 {[%clk 0:01:41.3]} 23... Qc5+ {[%clk 0:01:16.1]}
24. Kh1 {[%clk 0:01:41.3]} 24... a5 {[%clk 0:01:13.5]} 25. g4 {[%clk 0:01:35.1]}
25... Rh6 {[%clk 0:01:03]} 26. g5 {[%clk 0:01:31.5]} 26... Rg6 {[%clk
0:01:04.3]} 27. h4 {[%clk 0:01:32.3]} 27... fxg5 {[%clk 0:00:51.1]} 28. f5
{[%clk 0:01:26.2]} 28... Nxd5 {[%clk 0:00:49.9]} 29. cxd5 {[%clk 0:00:41.8]}
29... Qxc3 {[%clk 0:00:49.9]} 30. Bxc3 {[%clk 0:00:42.2]} 30... Rh6 {[%clk
0:00:51.4]} 31. Re7 {[%clk 0:00:43.7]} 31... Rxh4+ {[%clk 0:00:52.7]} 32. Kg2
{[%clk 0:00:45]} 32... Kf8 {[%clk 0:00:33.7]} 33. Rxc7 {[%clk 0:00:42.7]} 33...
Re8 {[%clk 0:00:34.4]} 34. Bxg7+ {[%clk 0:00:42.4]} 34... Kg8 {[%clk 0:00:35.6]}
35. f6 {[%clk 0:00:38.9]} 35... Re2+ {[%clk 0:00:32.3]} 36. Rf2 {[%clk
0:00:31.9]} 36... Rxf2+ {[%clk 0:00:24.4]} 37. Kxf2 {[%clk 0:00:33.8]} 37...
Rxa4 {[%clk 0:00:25.7]} 38. d6 {[%clk 0:00:33.5]} 38... Rd4 {[%clk 0:00:24.1]}
1-0

[Event "*** Titled Tuesday 3|2 Blitz"]
[Site "Chess.com"]
[Date "2017.03.07"]
[Round "7"]
[White "Fandorine"]
[Black "GMHess"]
[Result "0-1"]
[WhiteElo "2626"]
[BlackElo "2599"]
[TimeControl "180+2"]
[EndTime "14:37:47 PST"]
[Termination "GMHess won by resignation"]

1. e4 {[%clk 0:03:02]} 1... e5 {[%clk 0:02:52.7]} 2. Bc4 {[%clk 0:03:02.5]} 2...
Nf6 {[%clk 0:02:51.7]} 3. d3 {[%clk 0:03:03.5]} 3... Nc6 {[%clk 0:02:36.4]} 4.
Nc3 {[%clk 0:03:04]} 4... Bb4 {[%clk 0:02:36.7]} 5. Ne2 {[%clk 0:03:04.3]} 5...
d5 {[%clk 0:02:33.6]} 6. exd5 {[%clk 0:02:59.8]} 6... Nxd5 {[%clk 0:02:34.9]} 7.
Bxd5 {[%clk 0:03:01.1]} 7... Qxd5 {[%clk 0:02:33.3]} 8. O-O {[%clk 0:03:02.7]}
8... Qd8 {[%clk 0:02:30.7]} 9. f4 {[%clk 0:03:03.7]} 9... exf4 {[%clk
0:02:25.8]} 10. Bxf4 {[%clk 0:03:03.5]} 10... O-O {[%clk 0:02:22.9]} 11. Ng3
{[%clk 0:03:02.6]} 11... f5 {[%clk 0:02:14.3]} 12. Kh1 {[%clk 0:03:00.5]} 12...
Nd4 {[%clk 0:02:06.3]} 13. a3 {[%clk 0:02:56.6]} 13... Ba5 {[%clk 0:01:50.8]}
14. b4 {[%clk 0:02:51.7]} 14... Bb6 {[%clk 0:01:51.5]} 15. Na4 {[%clk 0:02:53]}
15... Bd7 {[%clk 0:01:40.7]} 16. c4 {[%clk 0:02:25.8]} 16... Bxa4 {[%clk
0:01:13.9]} 17. Qxa4 {[%clk 0:02:26.1]} 17... c6 {[%clk 0:01:11.6]} 18. Rae1
{[%clk 0:02:10]} 18... Bc7 {[%clk 0:00:54.4]} 19. Bxc7 {[%clk 0:01:56.9]} 19...
Qxc7 {[%clk 0:00:56.3]} 20. Ne2 {[%clk 0:01:58.5]} 20... Nxe2 {[%clk 0:00:43.2]}
21. Rxe2 {[%clk 0:02:00.4]} 21... Qd7 {[%clk 0:00:44.7]} 22. Qc2 {[%clk
0:01:47.7]} 22... a5 {[%clk 0:00:45]} 23. Rfe1 {[%clk 0:01:41.3]} 23... axb4
{[%clk 0:00:44.4]} 24. axb4 {[%clk 0:01:43.2]} 24... Rf7 {[%clk 0:00:37.3]} 25.
Re6 {[%clk 0:01:13.6]} 25... f4 {[%clk 0:00:34.1]} 26. Qe2 {[%clk 0:00:56.2]}
26... h6 {[%clk 0:00:13.6]} 27. h3 {[%clk 0:00:48.7]} 27... f3 {[%clk
0:00:12.7]} 28. gxf3 {[%clk 0:00:40.3]} 28... Raf8 {[%clk 0:00:13.1]} 29. Kg2
{[%clk 0:00:03.7]} 29... b5 {[%clk 0:00:08.8]} 30. cxb5 {[%clk 0:00:04.5]} 30...
cxb5 {[%clk 0:00:10.6]} 31. Qe4 {[%clk 0:00:05.5]} 31... Rxf3 {[%clk 0:00:10.9]}
32. Qg4 {[%clk 0:00:03.5]} 32... Rf2+ {[%clk 0:00:08.7]} 33. Kg1 {[%clk
0:00:04.3]} 33... Qf7 {[%clk 0:00:09.9]} 34. Rg6 {[%clk 0:00:03.7]} 34... Rf1+
{[%clk 0:00:10.8]} 35. Rxf1 {[%clk 0:00:03.3]} 35... Qxf1+ {[%clk 0:00:12.7]}
36. Kh2 {[%clk 0:00:05.2]} 36... Rf2+ {[%clk 0:00:14.3]} 37. Kg3 {[%clk
0:00:06.8]} 37... Rg2+ {[%clk 0:00:15.9]} 38. Kh4 {[%clk 0:00:08.7]} 0-1

[Event "*** Titled Tuesday 3|2 Blitz"]
[Site "Chess.com"]
[Date "2017.03.07"]
[Round "7"]
[White "Shivagami"]
[Black "ChristopherYoo"]
[Result "0-1"]
[WhiteElo "1948"]
[BlackElo "2147"]
[TimeControl "180+2"]
[EndTime "14:37:57 PST"]
[Termination "ChristopherYoo won by resignation"]

1. d4 {[%clk 0:03:02]} 1... Nf6 {[%clk 0:02:58.1]} 2. Bf4 {[%clk 0:03:02.5]}
2... d5 {[%clk 0:02:58.1]} 3. e3 {[%clk 0:03:02.6]} 3... c5 {[%clk 0:02:55.8]}
4. c3 {[%clk 0:03:03.1]} 4... Nc6 {[%clk 0:02:55.8]} 5. Nd2 {[%clk 0:03:02.6]}
5... e6 {[%clk 0:02:51.9]} 6. Ngf3 {[%clk 0:03:01]} 6... b6 {[%clk 0:02:49.8]}
7. Bb5 {[%clk 0:02:58.7]} 7... Bd7 {[%clk 0:02:50.2]} 8. O-O {[%clk 0:02:56.4]}
8... a6 {[%clk 0:02:50]} 9. Bd3 {[%clk 0:02:55.7]} 9... c4 {[%clk 0:02:48.1]}
10. Bc2 {[%clk 0:02:55.1]} 10... b5 {[%clk 0:02:48.8]} 11. e4 {[%clk 0:02:52.6]}
11... Be7 {[%clk 0:02:47.9]} 12. e5 {[%clk 0:02:33.6]} 12... Nh5 {[%clk
0:02:46.1]} 13. Be3 {[%clk 0:02:33.9]} 13... g6 {[%clk 0:02:47]} 14. Bh6 {[%clk
0:02:29.1]} 14... Bf8 {[%clk 0:02:43.2]} 15. Be3 {[%clk 0:01:39.9]} 15... Qb6
{[%clk 0:02:34.7]} 16. g4 {[%clk 0:01:30.8]} 16... Ng7 {[%clk 0:02:34.9]} 17.
Bh6 {[%clk 0:01:29.3]} 17... b4 {[%clk 0:01:50.7]} 18. Rb1 {[%clk 0:01:20]}
18... Qa5 {[%clk 0:01:47.5]} 19. cxb4 {[%clk 0:01:13.9]} 19... Nxb4 {[%clk
0:01:47.7]} 20. a3 {[%clk 0:01:08.9]} 20... Nxc2 {[%clk 0:01:45.5]} 21. Qxc2
{[%clk 0:01:10.8]} 21... Rc8 {[%clk 0:01:26.9]} 22. Ng5 {[%clk 0:00:59.8]} 22...
Qd8 {[%clk 0:00:52.3]} 23. Qc3 {[%clk 0:00:54]} 23... Nf5 {[%clk 0:00:35.5]} 24.
Bxf8 {[%clk 0:00:15.1]} 24... Qxg5 {[%clk 0:00:33.8]} 25. Qh3 {[%clk 0:00:13]}
25... Rxf8 {[%clk 0:00:27.4]} 26. Nf3 {[%clk 0:00:12.9]} 26... Qh6 {[%clk
0:00:28.1]} 27. Qg2 {[%clk 0:00:08.2]} 27... Nh4 {[%clk 0:00:26.5]} 28. Qh3
{[%clk 0:00:08.9]} 28... Nxf3+ {[%clk 0:00:26.9]} 29. Qxf3 {[%clk 0:00:10.8]}
29... Qg5 {[%clk 0:00:25.6]} 30. Qg3 {[%clk 0:00:10.7]} 30... h5 {[%clk
0:00:24.4]} 31. h3 {[%clk 0:00:10.5]} 31... hxg4 {[%clk 0:00:25.1]} 32. hxg4
{[%clk 0:00:12.4]} 32... Rh8 {[%clk 0:00:26]} 33. f4 {[%clk 0:00:13.5]} 33...
Qh4 {[%clk 0:00:25.3]} 34. Qg2 {[%clk 0:00:13.4]} 34... Qh3 {[%clk 0:00:23.8]}
35. Rf2 {[%clk 0:00:11.4]} 35... Qxg2+ {[%clk 0:00:24.3]} 36. Rxg2 {[%clk
0:00:13.3]} 36... Rb8 {[%clk 0:00:24.9]} 37. Rf1 {[%clk 0:00:13.1]} 37... Rb3
{[%clk 0:00:24.9]} 38. Kf2 {[%clk 0:00:11.5]} 38... Rxb2+ {[%clk 0:00:25.2]} 0-1

[Event "*** Titled Tuesday 3|2 Blitz"]
[Site "Chess.com"]
[Date "2017.03.07"]
[Round "7"]
[White "FlameOak4464"]
[Black "HouseOfDurin"]
[Result "1-0"]
[WhiteElo "1782"]
[BlackElo "1853"]
[TimeControl "180+2"]
[EndTime "14:38:03 PST"]
[Termination "FlameOak4464 won on time"]

1. e4 {[%clk 0:03:02]} 1... c5 {[%clk 0:03:01]} 2. Nf3 {[%clk 0:03:02.2]} 2...
Nc6 {[%clk 0:03:02.4]} 3. d4 {[%clk 0:03:01.9]} 3... cxd4 {[%clk 0:03:04.3]} 4.
Nxd4 {[%clk 0:03:01.6]} 4... e5 {[%clk 0:03:05.8]} 5. Nb5 {[%clk 0:03:01.5]}
5... d6 {[%clk 0:03:06.7]} 6. N1c3 {[%clk 0:02:27.8]} 6... a6 {[%clk 0:03:07.3]}
7. Na3 {[%clk 0:02:28.1]} 7... b5 {[%clk 0:03:08.8]} 8. Nd5 {[%clk 0:02:28.6]}
8... Be6 {[%clk 0:03:10.3]} 9. c3 {[%clk 0:02:26.8]} 9... Bxd5 {[%clk
0:03:03.1]} 10. Qxd5 {[%clk 0:02:26.1]} 10... Rc8 {[%clk 0:03:04.3]} 11. Nc2
{[%clk 0:02:25.6]} 11... Nf6 {[%clk 0:03:05.5]} 12. Qd3 {[%clk 0:02:23.7]} 12...
d5 {[%clk 0:03:06.6]} 13. exd5 {[%clk 0:02:08.4]} 13... Qxd5 {[%clk 0:03:08.5]}
14. Bg5 {[%clk 0:02:04.3]} 14... Qe4+ {[%clk 0:02:04.1]} 15. Qxe4 {[%clk
0:01:53.8]} 15... Nxe4 {[%clk 0:02:06]} 16. Be3 {[%clk 0:01:55.3]} 16... Be7
{[%clk 0:01:30.4]} 17. Bd3 {[%clk 0:01:53.5]} 17... Nc5 {[%clk 0:01:30.6]} 18.
Be2 {[%clk 0:01:51.7]} 18... f5 {[%clk 0:01:26.6]} 19. O-O {[%clk 0:01:36.3]}
19... Kf7 {[%clk 0:01:18.4]} 20. f4 {[%clk 0:01:30.8]} 20... g6 {[%clk
0:01:05.5]} 21. fxe5 {[%clk 0:01:25.3]} 21... Nxe5 {[%clk 0:01:07.4]} 22. Bd4
{[%clk 0:01:25.6]} 22... Bf6 {[%clk 0:01:08.5]} 23. g4 {[%clk 0:01:18.5]} 23...
Ke6 {[%clk 0:00:30.9]} 24. gxf5+ {[%clk 0:00:53.6]} 24... gxf5 {[%clk
0:00:32.8]} 25. Rae1 {[%clk 0:00:52.6]} 25... Rhg8+ {[%clk 0:00:33]} 26. Kh1
{[%clk 0:00:53.5]} 26... Ne4 {[%clk 0:00:25.5]} 27. Bxe5 {[%clk 0:00:41.5]}
27... Bxe5 {[%clk 0:00:25]} 28. Bf3 {[%clk 0:00:42.6]} 28... Nd2 {[%clk
0:00:17.1]} 29. Rf2 {[%clk 0:00:31.8]} 29... Nxf3 {[%clk 0:00:11]} 30. Rxf3
{[%clk 0:00:33.7]} 30... Rc4 {[%clk 0:00:10.6]} 31. Nd4+ {[%clk 0:00:30]} 31...
Kd5 {[%clk 0:00:02.4]} 32. Rxf5 {[%clk 0:00:28.4]} 32... Re8 {[%clk 0:00:04]}
33. Nf3 {[%clk 0:00:27]} 33... Re4 {[%clk 0:00:04.1]} 34. Rxe4 {[%clk
0:00:20.3]} 34... Kxe4 {[%clk 0:00:06]} 35. Rf7 {[%clk 0:00:21.2]} 35... Ke3
{[%clk 0:00:04.9]} 36. Ng5 {[%clk 0:00:21.3]} 36... Bf4 {[%clk 0:00:03]} 37.
Nxh7 {[%clk 0:00:21.4]} 37... Bh6 {[%clk 0:00:02.4]} 38. Nf6 {[%clk 0:00:19.8]}
1-0

[Event "*** Titled Tuesday 3|2 Blitz"]
[Site "Chess.com"]
[Date "2017.03.07"]
[Round "7"]
[White "Zhani-Z"]
[Black "spectralsoul"]
[Result "0-1"]
[WhiteElo "2327"]
[BlackElo "2622"]
[TimeControl "180+2"]
[EndTime "14:38:05 PST"]
[Termination "spectralsoul won by checkmate"]

1. e4 {[%clk 0:03:01.5]} 1... d6 {[%clk 0:03:01.4]} 2. d4 {[%clk 0:03:01.1]}
2... Nf6 {[%clk 0:03:02.9]} 3. Nc3 {[%clk 0:03:00.9]} 3... g6 {[%clk 0:03:04.4]}
4. Nf3 {[%clk 0:03:00.8]} 4... Bg7 {[%clk 0:03:03.7]} 5. Be2 {[%clk 0:03:02.3]}
5... O-O {[%clk 0:03:04]} 6. O-O {[%clk 0:03:03.8]} 6... a6 {[%clk 0:03:05.6]}
7. a4 {[%clk 0:03:03.5]} 7... b6 {[%clk 0:03:06.3]} 8. Re1 {[%clk 0:03:03.5]}
8... e6 {[%clk 0:03:04.2]} 9. d5 {[%clk 0:03:02.4]} 9... exd5 {[%clk 0:02:42.9]}
10. exd5 {[%clk 0:02:58.5]} 10... Bb7 {[%clk 0:02:36.6]} 11. Bg5 {[%clk
0:02:59.2]} 11... h6 {[%clk 0:02:36.3]} 12. Bh4 {[%clk 0:02:59.6]} 12... Re8
{[%clk 0:02:28.2]} 13. Qd2 {[%clk 0:02:51.2]} 13... Nbd7 {[%clk 0:02:28.5]} 14.
Bc4 {[%clk 0:02:49.1]} 14... g5 {[%clk 0:02:16]} 15. Bg3 {[%clk 0:02:49.2]}
15... Nc5 {[%clk 0:02:15.8]} 16. Nd4 {[%clk 0:02:29]} 16... Qd7 {[%clk
0:02:07.1]} 17. f3 {[%clk 0:01:57.2]} 17... Rxe1+ {[%clk 0:02:01.2]} 18. Bxe1
{[%clk 0:01:57.9]} 18... Re8 {[%clk 0:01:39.6]} 19. Bf2 {[%clk 0:01:57.7]} 19...
Re5 {[%clk 0:01:06.6]} 20. Bg3 {[%clk 0:01:39]} 20... Re8 {[%clk 0:01:04.7]} 21.
b3 {[%clk 0:01:17]} 21... Nh5 {[%clk 0:01:03.7]} 22. Bf2 {[%clk 0:01:17.4]}
22... Nf4 {[%clk 0:01:04.7]} 23. Bg3 {[%clk 0:00:57.6]} 23... Be5 {[%clk
0:01:00.4]} 24. Re1 {[%clk 0:00:48.5]} 24... Ng6 {[%clk 0:01:00.7]} 25. Bf2
{[%clk 0:00:46.5]} 25... Bf4 {[%clk 0:00:57.5]} 26. Qd1 {[%clk 0:00:46.7]} 26...
Be5 {[%clk 0:00:43.5]} 27. g3 {[%clk 0:00:44.4]} 27... Bg7 {[%clk 0:00:32.3]}
28. Kg2 {[%clk 0:00:43.2]} 28... Ne5 {[%clk 0:00:33]} 29. Bf1 {[%clk 0:00:40.2]}
29... f5 {[%clk 0:00:31.7]} 30. Qd2 {[%clk 0:00:38.6]} 30... Qf7 {[%clk
0:00:31.7]} 31. b4 {[%clk 0:00:36.7]} 31... Ncd7 {[%clk 0:00:31.7]} 32. Nb3
{[%clk 0:00:29.4]} 32... g4 {[%clk 0:00:28.2]} 33. fxg4 {[%clk 0:00:26.5]} 33...
fxg4 {[%clk 0:00:28.2]} 34. Be2 {[%clk 0:00:27.6]} 34... Nf3 {[%clk 0:00:27]}
35. Bxf3 {[%clk 0:00:27.3]} 35... Qxf3+ {[%clk 0:00:25.2]} 36. Kg1 {[%clk
0:00:28.4]} 36... Rxe1+ {[%clk 0:00:25.9]} 37. Bxe1 {[%clk 0:00:29.5]} 37...
Bxc3 {[%clk 0:00:24.2]} 38. Qxc3 {[%clk 0:00:30.4]} 38... Qxd5 {[%clk
0:00:25.8]} 39. Kf2 {[%clk 0:00:24]} 39... Ne5 {[%clk 0:00:21.4]} 40. Ke3 {[%clk
0:00:21.6]} 40... Qe4+ {[%clk 0:00:18.3]} 41. Kd2 {[%clk 0:00:22.1]} 41... Nf3+
{[%clk 0:00:19.7]} 42. Kd1 {[%clk 0:00:22.8]} 42... c5 {[%clk 0:00:20.8]} 43.
bxc5 {[%clk 0:00:22.2]} 43... bxc5 {[%clk 0:00:22.7]} 44. Qd3 {[%clk 0:00:22.3]}
44... Qxe1# {[%clk 0:00:22.3]} 0-1

[Event "*** Titled Tuesday 3|2 Blitz"]
[Site "Chess.com"]
[Date "2017.03.07"]
[Round "7"]
[White "IMcoach"]
[Black "mwpchess"]
[Result "1-0"]
[WhiteElo "2321"]
[BlackElo "2378"]
[TimeControl "180+2"]
[EndTime "14:38:06 PST"]
[Termination "IMcoach won on time"]

1. e4 {[%clk 0:02:59.6]} 1... c6 {[%clk 0:02:59]} 2. d3 {[%clk 0:03:00.5]} 2...
d5 {[%clk 0:02:59]} 3. Qe2 {[%clk 0:03:01.9]} 3... dxe4 {[%clk 0:02:57.8]} 4.
dxe4 {[%clk 0:03:02.3]} 4... e5 {[%clk 0:02:58.1]} 5. c3 {[%clk 0:02:58.4]} 5...
Nf6 {[%clk 0:02:57.3]} 6. Nf3 {[%clk 0:02:56.8]} 6... Qc7 {[%clk 0:02:57.2]} 7.
Bg5 {[%clk 0:02:53.7]} 7... Be7 {[%clk 0:02:56.4]} 8. Qc2 {[%clk 0:02:52.2]}
8... Bg4 {[%clk 0:02:51.5]} 9. Nbd2 {[%clk 0:02:53]} 9... Nbd7 {[%clk
0:02:48.3]} 10. Be2 {[%clk 0:02:53]} 10... h6 {[%clk 0:02:47.5]} 11. Bh4 {[%clk
0:02:53.5]} 11... Bh5 {[%clk 0:02:45.6]} 12. O-O {[%clk 0:02:45.3]} 12... a5
{[%clk 0:02:32.3]} 13. Rfe1 {[%clk 0:02:30.4]} 13... O-O {[%clk 0:02:31.6]} 14.
Nf1 {[%clk 0:02:22.8]} 14... Bg6 {[%clk 0:02:26.4]} 15. Bxf6 {[%clk 0:02:15.1]}
15... Nxf6 {[%clk 0:02:23.1]} 16. Ng3 {[%clk 0:02:13.5]} 16... Bc5 {[%clk
0:02:13.6]} 17. Nh4 {[%clk 0:02:12.3]} 17... Bh7 {[%clk 0:02:11.5]} 18. Nhf5
{[%clk 0:02:10.5]} 18... Rfd8 {[%clk 0:02:07.9]} 19. a4 {[%clk 0:02:02.1]} 19...
Bf8 {[%clk 0:01:54.1]} 20. Bc4 {[%clk 0:02:00.8]} 20... Bxf5 {[%clk 0:01:51.1]}
21. Nxf5 {[%clk 0:02:01.4]} 21... g6 {[%clk 0:01:51.3]} 22. Nh4 {[%clk
0:01:58.6]} 22... Kg7 {[%clk 0:01:50.6]} 23. Qe2 {[%clk 0:01:49.8]} 23... Bc5
{[%clk 0:01:46.2]} 24. Rad1 {[%clk 0:01:45.9]} 24... Rxd1 {[%clk 0:01:45.2]} 25.
Rxd1 {[%clk 0:01:46.8]} 25... Rd8 {[%clk 0:01:44.7]} 26. Rxd8 {[%clk 0:01:46.4]}
26... Qxd8 {[%clk 0:01:44.4]} 27. g3 {[%clk 0:01:47.8]} 27... Qd7 {[%clk
0:01:34.1]} 28. Kg2 {[%clk 0:01:48.3]} 28... Ne8 {[%clk 0:01:21.4]} 29. Nf3
{[%clk 0:01:46.2]} 29... Qd6 {[%clk 0:01:17.5]} 30. Bb3 {[%clk 0:01:44.6]} 30...
Ba7 {[%clk 0:01:05.3]} 31. Qc4 {[%clk 0:01:43]} 31... Qf6 {[%clk 0:00:54.2]} 32.
h4 {[%clk 0:01:13.6]} 32... Nd6 {[%clk 0:00:53.2]} 33. Qe2 {[%clk 0:01:14]}
33... Bc5 {[%clk 0:00:42.4]} 34. h5 {[%clk 0:00:35.3]} 34... b5 {[%clk
0:00:41.4]} 35. hxg6 {[%clk 0:00:35.2]} 35... fxg6 {[%clk 0:00:39.4]} 36. axb5
{[%clk 0:00:35.9]} 36... cxb5 {[%clk 0:00:30.2]} 37. Qd3 {[%clk 0:00:36.7]}
37... a4 {[%clk 0:00:22.6]} 38. Ba2 {[%clk 0:00:36.8]} 38... Nf7 {[%clk
0:00:04.2]} 39. Qd5 {[%clk 0:00:34.7]} 39... Bb6 {[%clk 0:00:03.8]} 40. Qb7
{[%clk 0:00:21.6]} 1-0